bitfinex/quotes_SOLUSD_20240703
["timestamp","ask_amount","ask_price","bid_price","bid_amount"]
[1720047913865,13.51,141.06,141.03,7.0906]
[1720047914367,13.51,141.04,140.99,18.5694383]
[1720047914570,0.17,141.05,140.99,25.6617383]
[1720047914571,13.51,141.02,140.99,25.6617383]
[1720047914769,0.17,141.01,140.99,0.8380383]
[1720047915077,13.85,141.01,140.99,0.8380383]
[1720047915655,20.9418,141.01,140.99,0.8380383]
[1720047915854,13.85,141.01,140.99,0.8380383]
[1720047917079,20.9417,141.01,140.99,0.8380383]
[1720047917275,20.6021,141.0,140.99,0.8380383]
[1720047917469,20.9421,141.0,140.99,0.8380383]
[1720047920583,7.0916,141.02,140.99,0.8380383]
[1720047920771,7.0906,141.04,140.99,0.8380383]
[1720047920965,13.51,141.02,140.99,0.8380383]
[1720047921364,15.2703,141.06,140.99,7.9305383]
[1720047921566,13.51,141.02,140.99,7.9305383]
[1720047921785,13.51,141.02,140.99,0.8380383]
[1720047922284,13.51,141.03,140.99,7.9306383]
[1720047922460,20.6007,141.03,140.99,7.9306383]
[1720047922869,7.0907,141.03,140.99,7.9306383]
[1720047923073,7.0902,141.04,140.99,7.9306383]
[1720047923257,13.51,141.03,140.99,7.9306383]
[1720047923762,7.0908,141.03,140.99,0.8380383]
[1720047924283,0.17,141.02,140.99,0.8380383]
[1720047924490,0.17,141.02,140.99,7.9306383]
[1720047924784,0.34,141.02,140.99,7.9306383]
[1720047925186,0.34,141.03,140.99,7.9306383]
[1720047925491,7.4307,141.03,140.99,7.9306383]
[1720047927587,7.0893,141.06,141.01,7.0913]
[1720047927801,6.1123,141.07,140.99,18.5694383]
[1720047927983,7.0905,141.04,140.99,25.6617383]
[1720047928896,0.34,141.03,140.99,25.6617383]
[1720047932300,7.4307,141.03,140.99,25.6617383]
[1720047936097,0.34,141.03,140.99,25.6617383]
[1720047936791,7.0921,141.0,140.99,0.8380383]
[1720047936987,7.4321,141.0,140.99,0.8380383]
[1720047943813,20.9921,141.0,140.99,0.8380383]
[1720047948019,40.9921,141.0,140.99,0.8380383]
[1720047950011,27.4321,141.0,140.99,0.8380383]
[1720047950216,40.9921,141.0,140.99,0.8380383]
[1720047952113,7.4321,141.0,140.99,0.8380383]
[1720047952506,20.9921,141.0,140.99,0.8380383]
[1720047953719,7.0918,141.01,140.99,0.8380383]
[1720047954013,13.56,141.02,140.99,0.8380383]
[1720047954205,13.56,141.02,140.99,7.9306383]
[1720047954606,7.0905,141.04,140.99,7.9306383]
[1720047954607,13.56,141.03,140.99,7.9306383]
[1720047955608,20.6497,141.05,141.0,20.6521]
[1720047956732,0.17,141.04,141.0,20.6521]
[1720047957030,0.34,141.04,141.0,20.6521]
[1720047957343,0.34,141.04,141.0,7.0921]
[1720047957631,0.34,141.04,141.0,20.6521]
[1720047959329,7.4303,141.04,141.0,20.6521]
[1720047959633,7.4303,141.04,141.0,13.56]
[1720047960002,20.9903,141.04,140.99,39.2219383]
[1720047960622,0.34,141.04,140.99,0.8380383]
[1720047960829,7.0921,141.0,140.99,0.8380383]
[1720047961130,0.34,141.0,140.99,0.8380383]
[1720047961712,7.0912,141.02,140.99,0.8380383]
[1720047961919,0.17,141.01,140.99,0.8380383]
[1720047962224,0.34,141.01,140.99,0.8380383]
[1720047962908,7.4318,141.01,140.99,0.8380383]
[1720047963106,0.34,141.01,140.99,0.8380383]
[1720047964926,25.08840425,141.08,141.01,7.0913]
[1720047965123,34.30731101,141.06,141.01,13.56]
[1720047965335,27.21821101,141.05,141.01,20.6515]
[1720047965525,27.21821101,141.05,141.0,38.382]
[1720047965526,27.21821101,141.04,141.0,38.382]
[1720047965837,20.6497,141.05,141.0,38.382]
[1720047966012,27.21811162,141.04,141.0,38.382]
[1720047966213,20.6497,141.05,141.01,13.56]
[1720047966419,6.74848054,141.04,141.01,13.56]
[1720047966615,7.0893,141.06,141.01,20.6515]
[1720047966815,12.98332489,141.08,141.03,13.56]
[1720047966816,7.36710425,141.08,141.03,13.56]
[1720047967143,20.46640087,141.07,141.06,20.649]
[1720047967322,20.647,141.11,141.06,20.649]
[1720047967515,27.2162036,141.1,141.06,20.649]
[1720047967715,20.647,141.11,141.06,20.649]
[1720047968429,7.087,141.11,141.07,13.56]
[1720047969029,20.0,141.1,141.07,13.56]
[1720047969230,27.0872,141.1,141.06,13.56]
[1720047969415,40.6472,141.1,141.05,20.6495]
[1720047970029,40.6472,141.1,141.04,33.454]
[1720047970030,20.0,141.1,141.06,20.649]
[1720047970541,27.0872,141.1,141.06,20.649]
[1720047970920,27.0872,141.1,141.06,13.56]
[1720047972338,27.0872,141.1,141.05,7.0895]
[1720047972534,27.0872,141.1,141.06,13.56]
[1720047972939,27.0872,141.1,141.06,20.6491]
[1720047973818,7.2578,141.09,141.05,13.56]
[1720047974043,7.2578,141.09,141.05,20.6496]
[1720047974855,0.17,141.09,141.05,20.6496]
[1720047975030,0.34,141.09,141.05,20.6496]
[1720047977547,0.34,141.09,141.06,7.0891]
[1720047977722,0.34,141.09,141.05,20.6496]
[1720047978127,7.4277,141.09,141.05,20.6496]
[1720047980045,0.34,141.09,141.05,20.6496]
[1720047984248,0.34,141.09,141.06,13.56]
[1720047985932,0.34,141.09,141.05,20.6496]
[1720047989057,0.34,141.09,141.06,20.649]
[1720047989457,0.34,141.09,141.06,13.56]
[1720047989660,0.34,141.09,141.06,20.6489]
[1720047991051,15.4133,141.14,141.1,7.0867]
[1720047991347,7.0837,141.17,141.13,7.0855]
[1720047991552,36.7703,141.18,141.13,20.6455]
[1720047991731,16.127,141.18,141.14,7.0849]
[1720047991931,7.0827,141.19,141.15,13.56]
[1720047992150,7.0827,141.19,141.15,20.6446]
[1720047992540,7.0827,141.19,141.15,13.56]
[1720047992847,7.0831,141.18,141.14,7.085]
[1720047993055,7.0831,141.18,141.14,20.645]
[1720047993232,20.6428,141.19,141.14,20.645]
[1720047993432,13.56,141.19,141.15,7.0844]
[1720047993633,20.6427,141.19,141.14,7.085]
[1720047993833,20.6427,141.19,141.14,20.645]
[1720047994039,0.34,141.18,141.13,17.7135]
[1720047994243,0.34,141.18,141.12,7.0857]
[1720047994244,0.34,141.18,141.12,13.56]
[1720047994447,20.6442,141.16,141.11,20.6465]
[1720047994730,0.17,141.15,141.11,20.6465]
[1720047994950,0.17,141.15,141.12,7.086]
[1720047996435,0.17,141.15,141.12,20.646]
[1720047996632,20.6448,141.15,141.1,24.8038]
[1720047996868,7.4253,141.14,141.1,17.7171]
[1720047997155,0.34,141.14,141.1,38.3642]
[1720047997458,0.34,141.14,141.11,7.0864]
[1720048002959,7.0863,141.12,141.07,24.8095]
[1720048003139,13.9,141.11,141.07,24.8095]
[1720048003344,13.9,141.11,141.07,17.721]
[1720048003345,0.34,141.11,141.07,17.721]
[1720048003676,0.34,141.11,141.09,7.0872]
[1720048004043,0.34,141.12,141.09,7.0872]
[1720048004273,20.6468,141.11,141.07,17.721]
[1720048004570,0.17,141.1,141.07,17.721]
[1720048004744,13.9,141.1,141.07,17.721]
[1720048004951,7.0855,141.14,141.09,7.0873]
[1720048005145,13.56,141.12,141.08,7.0879]
[1720048005346,0.34,141.11,141.08,7.0879]
[1720048005766,13.9,141.11,141.08,7.0879]
[1720048006160,0.34,141.11,141.09,17.7188]
[1720048006362,0.17,141.12,141.09,17.7188]
[1720048006568,7.0847,141.15,141.08,13.56]
[1720048006773,13.56,141.14,141.1,7.0868]
[1720048007076,13.56,141.12,141.08,24.8076]
[1720048007776,0.17,141.11,141.08,24.8076]
[1720048007965,0.34,141.11,141.09,7.0876]
[1720048008357,0.17,141.1,141.05,17.7232]
[1720048008551,13.9,141.1,141.07,7.0886]
[1720048010765,0.34,141.1,141.07,7.0886]
[1720048010960,13.73,141.1,141.07,7.0886]
[1720048011177,0.17,141.09,141.07,7.0886]
[1720048011478,0.34,141.09,141.08,7.0881]
[1720048018701,7.4278,141.09,141.04,17.725]
[1720048018883,13.56,141.07,141.04,17.725]
[1720048019194,0.34,141.06,141.04,17.725]
[1720048019385,0.34,141.06,141.04,24.815]
[1720048020063,13.9,141.06,141.04,24.815]
[1720048020865,13.9,141.06,141.04,17.725]
[1720048021070,13.56,141.05,141.02,7.091]
[1720048021272,0.34,141.04,141.03,7.0906]
[1720048022083,0.34,141.04,141.01,17.7282]
[1720048022403,13.9,141.04,141.01,17.7282]
[1720048023180,13.9,141.04,141.02,7.091]
[1720048024064,13.9,141.04,141.03,7.0906]
[1720048025059,0.34,141.04,141.03,7.0906]
[1720048025266,0.17,141.04,141.03,7.0906]
[1720048027285,13.9,141.04,141.02,7.0911]
[1720048027674,13.56,141.03,141.01,17.7282]
[1720048027874,0.34,141.02,141.01,17.7282]
[1720048028606,0.34,141.02,141.01,24.8198]
[1720048029387,0.34,141.02,140.99,0.8380383]
[1720048029388,13.9,141.02,140.99,0.8380383]
[1720048029572,13.56,141.01,140.99,0.8380383]
[1720048029774,0.34,141.0,140.99,0.8380383]
[1720048029984,0.34,141.0,140.99,7.9307383]
[1720048031383,13.9,141.0,140.99,7.9307383]
[1720048031688,13.9,141.0,140.99,0.8380383]
[1720048033896,0.34,141.0,140.99,0.8380383]
[1720048034114,13.9,141.0,140.99,0.8380383]
[1720048036008,0.34,141.0,140.99,0.8380383]
[1720048036306,13.9,141.0,140.99,0.8380383]
[1720048037107,0.34,141.0,140.99,7.9307383]
[1720048037283,15.1786,141.04,141.0,17.7299]
[1720048037606,13.56,141.03,141.0,17.7299]
[1720048037985,13.56,141.03,141.01,7.0915]
[1720048038407,13.56,141.03,141.0,24.8219]
[1720048038820,0.17,141.02,141.0,24.8219]
[1720048038993,13.73,141.02,140.99,0.8380383]
[1720048039321,13.56,141.01,140.99,0.8380383]
[1720048039482,0.17,141.0,140.99,0.8380383]
[1720048039683,0.17,141.0,140.99,7.9307383]
[1720048039897,13.56,141.03,141.0,7.0921]
[1720048040113,0.34,141.02,141.0,7.0921]
[1720048041513,0.34,141.02,140.99,25.6620383]
[1720048042510,0.34,141.02,141.0,7.0921]
[1720048042901,0.34,141.03,141.0,7.0921]
[1720048043089,13.9,141.04,141.0,7.0921]
[1720048044196,7.4302,141.04,141.0,7.0921]
[1720048044406,43.8728,141.09,141.01,17.729]
[1720048044602,7.0888,141.07,141.02,7.091]
[1720048044815,13.56,141.06,141.02,8.50899311]
[1720048045723,0.17,141.05,141.02,8.50899311]
[1720048046042,0.34,141.05,141.02,8.50899311]
[1720048047831,7.0888,141.07,141.02,8.50899311]
[1720048048137,0.34,141.06,141.02,22.06899311]
[1720048048643,34.0456,141.12,141.05,13.56]
[1720048048946,7.0875,141.1,141.06,13.56]
[1720048050133,0.34,141.09,141.06,13.56]
[1720048051149,7.4278,141.09,141.05,20.6494]
[1720048054535,0.34,141.09,141.05,20.6494]
[1720048056727,7.4277,141.09,141.05,20.6494]
[1720048060438,7.4277,141.09,141.05,7.0894]
[1720048060621,7.0885,141.08,141.04,20.6501]
[1720048060826,0.34,141.07,141.04,20.6501]
[1720048061438,0.34,141.08,141.04,20.6501]
[1720048062519,7.4281,141.08,141.04,7.0901]
[1720048062720,7.4281,141.08,141.04,20.6501]
[1720048064040,7.0866,141.12,141.07,20.6482]
[1720048064257,15.7105,141.16,141.07,20.6482]
[1720048064258,13.56,141.13,141.07,17.7215]
[1720048064421,7.0862,141.12,141.07,38.3698]
[1720048065250,0.17,141.11,141.08,7.088]
[1720048065435,0.34,141.11,141.08,7.088]
[1720048067746,0.34,141.11,141.09,7.0874]
[1720048068044,0.17,141.11,141.09,7.0874]
[1720048068248,0.34,141.12,141.09,7.0874]
[1720048070955,0.34,141.12,141.08,20.6479]
[1720048071649,0.34,141.12,141.08,7.0879]
[1720048072647,7.4263,141.12,141.08,7.0879]
[1720048072863,20.9863,141.12,141.08,7.0879]
[1720048074055,13.9,141.12,141.08,7.0879]
[1720048075148,7.0847,141.15,141.09,17.7187]
[1720048075352,13.56,141.15,141.11,7.0863]
[1720048075550,15.7105,141.16,141.11,20.6463]
[1720048075739,29.2705,141.16,141.11,20.6463]
[1720048075939,13.56,141.15,141.11,7.0863]
[1720048076166,7.0846,141.15,141.11,7.0863]
[1720048076453,20.6446,141.15,141.11,7.0863]
[1720048077363,0.34,141.14,141.11,7.0863]
[1720048078776,0.34,141.14,141.1,7.087]
[1720048078967,13.56,141.12,141.09,24.806]
[1720048079150,0.17,141.11,141.09,24.806]
[1720048081465,0.17,141.11,141.1,7.0871]
[1720048085851,0.17,141.12,141.11,7.0866]
[1720048086167,0.34,141.12,141.11,7.0866]
[1720048089469,0.34,141.12,141.1,7.0869]
[1720048089666,13.9,141.13,141.09,24.8061]
[1720048089968,13.56,141.12,141.09,17.7187]
[1720048090262,0.34,141.11,141.09,17.7187]
[1720048090466,0.34,141.11,141.09,24.8063]
[1720048090668,0.34,141.11,141.09,17.7187]
[1720048091546,13.9,141.11,141.08,7.0878]
[1720048091747,13.56,141.1,141.07,7.0884]
[1720048091977,0.34,141.11,141.09,7.0876]
[1720048092166,0.34,141.11,141.1,7.0871]
[1720048092954,22.7947,141.16,141.11,7.0864]
[1720048093285,27.21283224,141.15,141.14,7.0851]
[1720048093488,22.428,141.2,141.15,7.0846]
[1720048093812,13.56,141.18,141.15,7.0846]
[1720048093959,20.45381976,141.17,141.15,7.0846]
[1720048094149,13.56,141.18,141.15,7.0846]
[1720048094348,13.56,141.18,141.14,24.7976]
[1720048094546,7.0826,141.19,141.14,24.7976]
[1720048094770,41.10537201,141.18,141.14,24.7976]
[1720048094978,13.9,141.18,141.14,24.7976]
[1720048095552,15.3455,141.2,141.16,17.7097]
[1720048095757,27.20537362,141.19,141.17,7.0834]
[1720048095965,20.45310515,141.18,141.17,7.0834]
[1720048096184,20.6415,141.22,141.17,20.6434]
[1720048096356,27.20450377,141.21,141.17,20.6434]
[1720048096557,27.20450377,141.2,141.17,20.6434]
[1720048096757,27.20450377,141.19,141.17,20.6434]
[1720048096990,22.027,141.24,141.17,1.41604133]
[1720048097279,40.76235011,141.23,141.19,7.0822]
[1720048097588,27.20235011,141.22,141.19,7.0822]
[1720048097787,27.20235011,141.22,141.18,31.2673]
[1720048097788,20.6407,141.23,141.18,24.7904]
[1720048097963,34.00779389,141.22,141.18,38.3504]
[1720048098164,13.56,141.22,141.18,24.7904]
[1720048098363,0.34,141.21,141.18,24.7904]
[1720048099078,0.17,141.21,141.19,7.0826]
[1720048099382,15.4009,141.24,141.2,17.7045]
[1720048099603,13.56,141.24,141.2,17.7045]
[1720048099757,20.6401,141.24,141.2,17.7045]
[1720048100068,20.6401,141.24,141.2,24.7865]
[1720048100270,13.56,141.24,141.2,24.7865]
[1720048100470,7.0798,141.25,141.2,24.7865]
[1720048100685,13.56,141.24,141.2,24.7865]
[1720048100983,7.0793,141.26,141.21,7.0815]
[1720048101166,34.00590407,141.25,141.21,7.0815]
[1720048101360,13.56,141.25,141.21,7.0815]
[1720048101970,13.56,141.26,141.22,7.081]
[1720048102364,20.6391,141.26,141.21,20.6414]
[1720048102964,13.56,141.25,141.21,7.0814]
[1720048103885,7.4191,141.26,141.21,20.6414]
[1720048104059,0.34,141.25,141.21,20.6414]
[1720048105678,13.9,141.25,141.21,7.0814]
[1720048105882,0.34,141.25,141.17,17.7083]
[1720048106187,13.56,141.22,141.18,7.0831]
[1720048106360,0.34,141.21,141.18,7.0831]
[1720048107369,0.34,141.21,141.19,7.0825]
[1720048109773,0.34,141.21,141.2,7.0821]
[1720048110965,0.34,141.21,141.19,17.7062]
[1720048111168,13.56,141.2,141.17,7.0833]
[1720048111384,0.17,141.19,141.18,7.0831]
[1720048111602,13.73,141.21,141.18,7.0831]
[1720048111776,0.17,141.2,141.18,7.0831]
[1720048112102,0.17,141.2,141.19,7.0826]
[1720048113298,0.17,141.2,141.18,7.083]
[1720048113998,0.17,141.2,141.08,15.7347]
[1720048113999,16.1592,141.2,141.08,15.7347]
[1720048114189,13.56,141.12,141.07,7.0885]
[1720048114388,13.9,141.11,141.07,7.0886]
[1720048114889,13.9,141.11,141.08,7.0881]
[1720048115200,0.34,141.11,141.09,7.0876]
[1720048116693,0.34,141.11,141.08,17.7197]
[1720048116892,0.34,141.11,141.08,24.8078]
[1720048120617,13.9,141.12,141.08,24.8078]
[1720048120903,13.56,141.11,141.08,17.7197]
[1720048122006,17.7086,141.18,141.08,17.7197]
[1720048122214,7.085,141.15,141.1,7.0868]
[1720048122511,13.56,141.13,141.1,7.0868]
[1720048122706,13.56,141.12,141.08,17.7197]
[1720048122882,13.56,141.1,141.08,17.7197]
[1720048124805,13.9,141.11,141.08,24.8077]
[1720048128813,13.56,141.11,141.1,7.0871]
[1720048128988,13.56,141.12,141.1,7.0871]
[1720048129308,13.56,141.12,141.09,7.0874]
[1720048129488,0.17,141.13,141.1,7.0869]
[1720048129688,13.56,141.12,141.1,7.0869]
[1720048131009,13.56,141.12,141.09,7.0874]
[1720048131195,13.56,141.11,141.08,24.8077]
[1720048131603,7.0862,141.12,141.08,17.7197]
[1720048131816,13.56,141.1,141.08,17.7197]
[1720048132027,13.56,141.09,141.05,15.7347]
[1720048132215,13.56,141.08,141.05,15.7347]
[1720048132508,13.56,141.08,141.05,7.0893]
[1720048132702,13.56,141.08,141.06,7.0891]
[1720048133421,13.73,141.07,141.04,17.7249]
[1720048133586,13.73,141.07,141.05,7.0896]
[1720048133790,13.73,141.07,141.06,7.0891]
[1720048134021,13.9,141.07,141.06,7.0891]
[1720048134390,0.34,141.07,141.06,7.0891]
[1720048134589,13.56,141.08,141.07,7.0886]
[1720048134805,13.56,141.1,141.08,7.0881]
[1720048136305,17.7111,141.16,141.08,7.0881]
[1720048136510,7.0857,141.13,141.09,7.0875]
[1720048136709,13.56,141.12,141.09,7.0875]
[1720048137011,22.3414,141.14,141.09,7.0875]
[1720048137213,13.56,141.11,141.09,7.0875]
[1720048137605,13.56,141.11,141.08,24.8081]
[1720048138722,13.56,141.1,141.08,24.8081]
[1720048138923,0.17,141.12,141.08,17.7201]
[1720048139105,13.56,141.1,141.08,24.8081]
[1720048141901,15.2561,141.14,141.09,7.0876]
[1720048142102,13.56,141.13,141.09,7.0876]
[1720048142315,13.56,141.11,141.08,17.7201]
[1720048142604,13.56,141.1,141.07,7.0885]
[1720048144139,13.56,141.1,141.08,7.0881]
[1720048146403,13.56,141.1,141.09,7.0876]
[1720048146611,13.56,141.1,141.03,22.1001]
[1720048146818,13.56,141.07,141.06,7.0888]
[1720048147021,13.56,141.07,141.06,24.8118]
[1720048149731,13.73,141.07,141.03,17.7262]
[1720048150037,13.56,141.05,141.03,17.7262]
[1720048150239,0.34,141.07,141.04,7.09]
[1720048150439,13.56,141.05,141.04,7.09]
[1720048150641,13.9,141.05,141.04,7.09]
[1720048151635,13.56,141.06,141.05,7.0895]
[1720048151846,13.9,141.06,141.05,7.0895]
[1720048153640,7.0875,141.1,141.06,7.0889]
[1720048153833,0.34,141.09,141.05,24.8129]
[1720048154038,0.34,141.09,141.06,7.0891]
[1720048154248,13.56,141.07,141.06,7.0891]
[1720048154751,13.56,141.07,141.05,24.8131]
[1720048155049,13.56,141.06,141.02,17.7274]
[1720048155247,13.56,141.05,141.03,7.0903]
[1720048155423,13.73,141.05,141.03,7.0903]
[1720048156368,13.56,141.04,141.03,7.0903]
[1720048156728,13.73,141.04,141.02,24.8185]
[1720048156928,13.9,141.03,141.02,24.8185]
[1720048158035,13.9,141.03,141.02,17.7274]
[1720048159027,13.9,141.03,141.02,24.8185]
[1720048161352,13.9,141.03,141.01,7.0916]
[1720048161553,13.56,141.02,141.01,7.0916]
[1720048161752,13.9,141.02,141.01,7.0916]
[1720048161967,13.9,141.02,141.0,7.0921]
[1720048162256,13.73,141.01,141.0,7.0921]
[1720048162445,13.73,141.01,140.99,18.5689383]
[1720048162643,13.56,141.0,140.99,18.5689383]
[1720048162830,13.56,141.0,140.99,25.6612383]
[1720048163238,22.3167,141.07,141.01,17.7286]
[1720048163557,13.56,141.03,141.01,17.7286]
[1720048163730,13.56,141.03,141.02,7.0908]
[1720048163935,20.0,141.06,141.05,7.0896]
[1720048164134,13.56,141.06,141.05,7.0896]
[1720048164562,13.56,141.06,141.04,24.8148]
[1720048164852,13.56,141.05,141.04,24.8148]
[1720048165666,13.56,141.06,141.04,24.8148]
[1720048165841,7.0872,141.1,141.04,17.7248]
[1720048166166,13.56,141.08,141.04,17.7248]
[1720048166961,13.56,141.08,141.05,7.0896]
[1720048167259,0.17,141.07,141.04,17.7248]
[1720048167458,13.56,141.05,141.02,7.091]
[1720048167856,13.56,141.05,141.01,17.7285]
[1720048168061,13.56,141.06,141.01,31.2885]
[1720048168247,13.56,141.06,141.04,7.0901]
[1720048169251,13.56,141.06,141.05,7.0896]
[1720048169971,13.56,141.06,141.04,7.09]
[1720048170854,0.34,141.07,141.04,7.09]
[1720048171055,13.56,141.06,141.05,7.0896]
[1720048173462,0.34,141.08,141.06,7.0891]
[1720048173776,0.17,141.07,141.06,7.0891]
[1720048175282,13.73,141.08,141.07,7.0886]
[1720048175658,0.17,141.08,141.07,7.0886]
[1720048175863,13.73,141.09,141.07,7.0886]
[1720048176477,13.73,141.09,141.06,7.089]
[1720048177478,0.17,141.09,141.07,7.0884]
[1720048177662,0.17,141.1,141.07,7.0884]
[1720048177857,15.4255,141.14,141.06,29.7725]
[1720048178086,20.46097484,141.13,141.11,24.8026]
[1720048178386,13.56,141.13,141.11,17.7163]
[1720048178968,22.5106,141.14,141.1,7.087]
[1720048179162,13.56,141.13,141.1,7.087]
[1720048179560,13.56,141.11,140.97,15.4365]
[1720048179759,7.0906,141.04,140.98,24.8257]
[1720048179971,13.56,141.02,140.98,24.8257]
[1720048180175,13.56,141.02,140.98,17.7327]
[1720048180578,20.6516,141.02,140.97,15.4365]
[1720048180781,13.56,141.0,140.97,15.4365]
[1720048181182,13.9,141.0,140.95,24.0975]
[1720048181490,13.56,141.0,140.97,7.0934]
[1720048181684,7.0913,141.02,140.97,7.0934]
[1720048181886,0.34,141.01,140.97,7.0934]
[1720048182079,0.34,141.01,140.98,7.0931]
[1720048182386,0.34,141.02,140.98,7.0931]
[1720048188284,7.4313,141.02,140.97,24.8272]
[1720048190280,0.34,141.02,140.98,7.093]
[1720048192301,7.4312,141.02,140.98,7.093]
[1720048192792,7.4312,141.02,140.97,24.8272]
[1720048193390,7.0917,141.01,140.97,24.8272]
[1720048193579,0.34,141.0,140.97,24.8272]
[1720048194602,0.34,141.0,140.98,7.093]
[1720048194978,7.0902,141.04,140.99,7.9306383]
[1720048195196,0.34,141.03,140.99,7.9306383]
[1720048195398,20.34,141.03,140.99,7.9306383]
[1720048195591,27.4308,141.03,140.99,7.9306383]
[1720048195802,7.0913,141.02,140.99,0.8380383]
[1720048195999,0.34,141.01,140.99,0.8380383]
[1720048196607,0.34,141.02,140.99,0.8380383]
[1720048197998,27.11,141.05,140.99,0.8380383]
[1720048198204,7.0883,141.08,141.03,7.0906]
[1720048198388,27.21814946,141.07,141.03,7.0906]
[1720048198582,14.49235733,141.08,141.03,7.0906]
[1720048198887,27.21815197,141.07,141.03,7.0906]
[1720048199205,14.49235733,141.08,141.03,7.0906]
[1720048199587,47.21783782,141.07,141.03,7.0906]
[1720048199782,20.0,141.07,141.03,7.0906]
[1720048200103,27.0887,141.07,141.03,7.0906]
[1720048200406,0.17,141.06,141.03,7.0906]
[1720048200704,0.34,141.06,141.03,24.8168]
[1720048200910,0.17,141.06,141.03,24.8168]
[1720048201908,13.71,141.06,141.03,24.8168]
[1720048203005,0.17,141.06,141.03,24.8168]
[1720048203207,13.54,141.06,141.03,24.8168]
[1720048203391,7.40405733,141.08,141.05,17.7239]
[1720048203590,7.087,141.11,141.07,7.0885]
[1720048203795,34.3324,141.15,141.07,24.8098]
[1720048203796,13.54,141.1,141.07,24.8098]
[1720048204003,13.54,141.1,141.07,17.7213]
[1720048204202,13.54,141.08,141.04,31.184]
[1720048204404,13.54,141.07,141.04,31.184]
[1720048204704,13.54,141.08,141.05,7.0895]
[1720048205106,7.0868,141.11,141.06,7.089]
[1720048205309,0.17,141.1,141.07,7.0886]
[1720048205507,13.71,141.1,141.07,7.0886]
[1720048205705,0.17,141.1,141.07,7.0886]
[1720048206098,20.17,141.11,141.07,7.0886]
[1720048206293,0.17,141.1,141.06,24.8114]
[1720048206489,7.2573,141.1,141.06,17.7224]
[1720048206908,7.2573,141.1,141.06,24.8114]
[1720048207412,0.17,141.1,141.06,24.8114]
[1720048213894,7.2572,141.1,141.06,24.8114]
[1720048216212,0.17,141.09,141.03,17.7258]
[1720048216514,7.0884,141.08,141.04,7.0901]
[1720048217314,7.429,141.07,141.03,17.7258]
[1720048217622,7.0883,141.08,141.03,24.8163]
[1720048217809,0.34,141.07,141.03,24.8163]
[1720048218899,0.17,141.07,141.03,17.7258]
[1720048219100,0.34,141.08,141.03,17.7258]
[1720048219619,7.4282,141.08,141.03,24.8161]
[1720048220307,7.4282,141.08,141.04,7.0901]
[1720048222824,0.34,141.08,141.04,7.0901]
[1720048224007,0.34,141.08,141.05,7.0895]
[1720048224503,0.34,141.09,141.05,7.0895]
[1720048224699,0.34,141.09,141.06,7.0891]
[1720048224912,0.34,141.09,141.05,17.724]
[1720048225116,0.34,141.09,141.05,24.8135]
[1720048226731,7.4277,141.09,141.05,24.8135]